fUSD/lending_fUSD_20260108
["ID","MTS","AMOUNT","RATE_DAILY","PERIOD"]
[401071162,1767903044188,-250.0,0.00017099,2]
[401071163,1767903044199,-500.0,0.00017099,2]
[401071164,1767903044209,-500.0,0.00017099,2]
[401071165,1767903044219,-250.0,0.00017099,2]
[401071166,1767903044229,-500.0,0.00017099,2]
[401071167,1767903044238,-500.0,0.00017099,2]
[401071168,1767903044248,-2000.0,0.00017099,2]
[401071169,1767903044257,-500.0,0.00017099,2]
[401071170,1767903044267,-2000.0,0.00017099,2]
[401071171,1767903044276,-500.0,0.00017099,2]
[401071172,1767903044285,-2000.0,0.00017099,2]
[401071173,1767903044294,-620.0,0.00017099,2]
[401071174,1767903044303,-500.0,0.00017099,2]
[401071175,1767903044312,-2000.0,0.00017099,2]
[401071176,1767903044322,-2000.0,0.00017099,2]
[401071177,1767903044331,-2000.0,0.00017099,2]
[401071178,1767903044340,-2000.0,0.00017099,2]
[401071179,1767903044350,-2000.0,0.00017099,2]
[401071180,1767903044359,-2000.0,0.00017099,2]
[401071181,1767903044368,-2000.0,0.00017099,2]
[401071182,1767903044379,-2000.0,0.00017099,2]
[401071183,1767903044388,-2000.0,0.00017099,2]
[401071184,1767903044398,-1000.0,0.000171,2]
[401071185,1767903044407,-150.0,0.0001711,2]
[401071186,1767903044418,-213.0,0.0001711,2]
[401071187,1767903044431,-302.46,0.0001711,2]
[401071188,1767903044440,-350.94134188,0.0001711,2]
[401071189,1767903044450,-500.0,0.00017153,2]
[401071190,1767903044459,-568.35,0.00017153,2]
[401071191,1767903044468,-1316.20759869,0.00017154,2]
[401071192,1767903044477,-1000.0,0.00017158,2]
[401071193,1767903044486,-1000.0,0.00017174,2]
[401071194,1767903044497,-466.71,0.00017178,2]
[401071195,1767903044506,-1000.0,0.00017183,2]
[401071196,1767903044515,-153.65010095,0.00017205,2]
[401071197,1767903044525,-500.0,0.00017205,2]
[401071198,1767903044534,-1000.0,0.00017211,2]
[401071199,1767903044543,-157.72323008,0.00017224,2]
[401071200,1767903044552,-258.0,0.00017227,2]
[401071201,1767903044561,-1000.0,0.00017248,2]
[401071202,1767903044571,-19119.49803204,0.00017252,2]
[401071203,1767903044580,-258.0,0.00017256,2]
[401071204,1767903044590,-914.0,0.00017256,2]
[401071205,1767903044599,-1204.815,0.00017256,2]
[401071206,1767903044609,-4819.0,0.00017256,2]
[401071207,1767903044618,-2436.0,0.00017256,2]
[401071208,1767903044627,-565.0,0.00017256,2]
[401071209,1767903044636,-1000.0,0.00017257,2]
[401071210,1767903044646,-1484.0,0.00017258,2]
[401071211,1767903044655,-500.0,0.0001726,2]
[401071212,1767903044664,-3546.0,0.0001726,2]
[401071213,1767903044673,-1000.0,0.0001726,2]
[401071214,1767903044682,-1484.0,0.00017261,2]
[401071215,1767903044692,-1000.0,0.00017265,2]
[401071216,1767903044701,-226.0,0.00017293,2]
[401071217,1767903044710,-1000.0,0.0001731,2]
[401071218,1767903044719,-500.0,0.00017315,2]
[401071219,1767903044729,-1000.0,0.00017351,2]
[401071220,1767903044737,-162.0,0.0001736,2]
[401071221,1767903044748,-833.0,0.0001736,2]
[401071222,1767903044758,-162.0,0.0001736,2]
[401071223,1767903044767,-162.0,0.0001736,2]
[401071224,1767903044776,-162.0,0.0001736,2]
[401071225,1767903044784,-833.0,0.0001736,2]
[401071226,1767903044794,-162.0,0.0001736,2]
[401071227,1767903044803,-833.0,0.0001736,2]
[401071228,1767903044811,-500.0,0.00017369,2]
[401071229,1767903044820,-258.0,0.00017383,2]
[401071230,1767903044829,-1484.0,0.00017387,2]
[401071231,1767903044841,-1000.0,0.00017391,2]
[401071232,1767903044849,-1000.0,0.000174,2]
[401071233,1767903044859,-1484.0,0.00017423,2]
[401071234,1767903044868,-500.0,0.00017424,2]
[401071235,1767903044880,-1000.0,0.00017457,2]
[401071236,1767903044889,-1000.0,0.0001746,2]
[401071237,1767903044898,-1000.0,0.00017474,2]
[401071238,1767903044908,-295.72412489,0.00017479,2]
[401071239,1767903044917,-262.0,0.0001748,2]
[401071240,1767903044926,-258.0,0.00017491,2]
[401071241,1767903044936,-168.52,0.00017499,2]
[401071242,1767903044944,-193.73266833,0.00017502,2]
[401071243,1767903044953,-3000.0,0.00017502,2]
[401071244,1767903044963,-1000.0,0.00017519,2]
[401071245,1767903044971,-1000.0,0.00017528,2]
[401071246,1767903044980,-1484.0,0.00017532,2]
[401071247,1767903044989,-3546.0,0.00017534,2]
[401071248,1767903044997,-1042.30773041,0.00017534,2]
[401071249,1767903045006,-258.0,0.00017536,2]
[401071250,1767903045015,-1000.0,0.00017548,2]
[401071251,1767903045024,-150.0,0.00017562,2]
[401071252,1767903045033,-1000.0,0.00017566,2]
[401071253,1767903045042,-150.0,0.00017592,2]
[401071254,1767903045051,-1000.0,0.00017594,2]
[401071255,1767903045060,-1000.0,0.00017609,2]
[401071256,1767903045069,-1000.0,0.00017614,2]
[401071257,1767903045078,-1000.0,0.00017629,2]
[401071258,1767903045090,-1000.0,0.00017638,2]
[401071259,1767903045099,-14991.4518794,0.0001764,2]
[401071260,1767903045108,-311.1,0.00017647,2]
[401071261,1767903045118,-293.26916709,0.00017647,2]
[401071262,1767903045127,-151.0,0.00017647,2]
[401071263,1767903045136,-574.12855637,0.00017647,2]
[401071264,1767903045145,-151.0,0.00017647,2]
[401071265,1767903045154,-335.0,0.00017652,2]
[401071266,1767903045163,-162.0,0.0001768,2]
[401071267,1767903045172,-162.0,0.0001768,2]
[401071268,1767903045181,-162.0,0.0001768,2]
[401071269,1767903045190,-162.0,0.0001768,2]
[401071270,1767903045199,-833.0,0.0001768,2]
[401071271,1767903045208,-162.0,0.0001768,2]
[401071272,1767903045217,-162.0,0.0001768,2]
[401071273,1767903045226,-833.0,0.0001768,2]
[401071274,1767903045233,-833.0,0.0001768,2]
[401071275,1767903045241,-163.0,0.0001768,2]
[401071276,1767903045250,-1000.0,0.000177,2]
[401071277,1767903045258,-1000.0,0.000177,2]
[401071278,1767903045267,-705.01,0.00017706,2]
[401071279,1767903045276,-25000.0,0.00017733,3]
[401071280,1767903045285,-500.0,0.00017741,2]
[401071281,1767903045295,-819.99,0.00017741,2]
[401071282,1767903045304,-500.0,0.00017741,2]
[401071283,1767903045313,-25000.0,0.00017742,3]
[401071284,1767903045322,-25000.0,0.0001775,3]
[401071285,1767903045332,-1000.0,0.00017753,2]
[401071286,1767903045341,-1000.0,0.0001776,2]
[401071287,1767903045350,-1000.0,0.00017779,2]
[401071288,1767903045359,-1000.0,0.00017781,2]
[401071289,1767903045369,-1000.0,0.0001779,2]
[401071290,1767903045378,-1000.0,0.00017792,2]
[401071291,1767903045387,-157.72323008,0.00017798,2]
[401071292,1767903045396,-2000.0,0.000178,2]
[401071293,1767903045406,-1000.0,0.000178,2]
[401071294,1767903045417,-408.36641282,0.000178,2]
[401071295,1767903045429,-3546.0,0.00017808,2]
[401071296,1767903045438,-1206.43464,0.0001782,2]
[401071297,1767903045447,-1206.43465,0.0001782,2]
[401071298,1767903045456,-758.96088212,0.0001782,2]
[401071299,1767903045466,-2563.74337966,0.0001783,2]
[401071300,1767903045475,-1206.43465,0.0001783,2]
[401071301,1767903045484,-1000.0,0.00017839,2]
[401071302,1767903045494,-150.0,0.0001784,2]
[401071303,1767903045506,-1000.0,0.00017846,2]
[401071304,1767903045515,-408.3664128,0.0001785,2]
[401071305,1767903045525,-500.0,0.00017855,2]
[401071306,1767903045535,-2000.0,0.00017855,2]
[401071307,1767903045544,-200.0,0.00017855,2]
[401071308,1767903045554,-568.35,0.00017855,2]
[401071309,1767903045563,-200.0,0.00017856,2]
[401071310,1767903045572,-2000.0,0.00017856,2]
[401071311,1767903045581,-200.0,0.00017856,2]
[401071312,1767903045593,-200.0,0.00017856,2]
[401071313,1767903045604,-1206.43465,0.0001786,2]
[401071314,1767903045613,-1000.0,0.00017871,2]
[401071315,1767903045622,-661.47,0.00017871,2]
[401071316,1767903045631,-661.47,0.00017871,2]
[401071317,1767903045640,-661.47,0.00017871,2]
[401071318,1767903045650,-661.47,0.00017871,2]
[401071319,1767903045659,-705.01,0.00017873,2]
[401071320,1767903045668,-1206.43464,0.0001788,2]
[401071321,1767903045678,-400.96412105,0.000179,2]
[401071322,1767903045687,-15821.88766235,0.000179,3]
[401071323,1767903045697,-10000.0,0.000179,2]
[401071324,1767903045706,-19119.49803204,0.000179,2]
[401071325,1767903045715,-408.3664128,0.000179,2]
[401071326,1767903045724,-306.94008536,0.000179,2]
[401071327,1767903045733,-190.04272048,0.000179,3]
[401071328,1767903045743,-26333.7829623,0.000179,2]
[401071330,1767903045752,-1206.43465,0.0001791,2]
[401071331,1767903045761,-1000.0,0.00017922,2]
[401071332,1767903045771,-1000.0,0.00017922,2]
[401071333,1767903045779,-482.72,0.00017948,2]
[401071334,1767903045788,-482.72,0.00017948,2]
[401071335,1767903045798,-482.72,0.00017948,2]
[401071336,1767903045807,-482.72,0.00017948,2]
[401071337,1767903045815,-953.87,0.00017948,2]
[401071338,1767903045824,-500.0,0.0001797,2]
[401071339,1767903045834,-500.0,0.0001797,2]
[401071340,1767903045843,-500.0,0.0001797,2]
[401071341,1767903045852,-1000.0,0.0001797,2]
[401071342,1767903045860,-500.0,0.0001797,2]
[401071343,1767903045868,-1000.0,0.0001797,2]
[401071344,1767903045876,-500.0,0.0001797,2]
[401071345,1767903045884,-1000.0,0.0001797,2]
[401071346,1767903045893,-584.41347442,0.0001797,2]
[401071347,1767903045901,-1000.0,0.0001797,2]
[401071348,1767903045909,-1000.0,0.0001797,2]
[401071349,1767903045918,-1000.0,0.0001797,2]
[401071350,1767903045926,-1000.0,0.0001797,2]
[401071351,1767903045934,-1446.54474908,0.0001797,2]
[401071352,1767903045943,-1000.0,0.00017971,2]
[401071353,1767903045952,-7567.0,0.00017973,2]
[401071354,1767903045961,-8200.0,0.00017973,2]
[401071355,1767903045970,-356.0,0.00017973,2]
[401071356,1767903045978,-235.35795411,0.00017973,2]
[401071357,1767903045987,-500.0,0.00017973,2]
[401071358,1767903045997,-500.0,0.00017973,2]
[401071359,1767903046006,-500.0,0.00017973,2]
[401071360,1767903046015,-150.49880534,0.00017973,2]
[401071361,1767903046024,-568.48476984,0.00017973,2]
[401071362,1767903046033,-500.0,0.00017973,2]
[401071363,1767903046042,-500.0,0.00017973,2]
[401071364,1767903046052,-504.45710441,0.00017973,2]
[401071365,1767903046062,-160.89060159,0.00017973,2]
[401071366,1767903046071,-159.904,0.00017973,2]
[401071367,1767903046080,-500.0,0.00017973,2]
[401071368,1767903046090,-500.0,0.00017973,2]
[401071369,1767903046100,-500.0,0.00017973,2]
[401071370,1767903046110,-500.0,0.00017973,2]
[401071371,1767903046119,-500.17178809,0.00017973,2]
[401071372,1767903046129,-513.02244381,0.00017973,2]
[401071373,1767903046138,-426.73386812,0.00017973,2]
[401071374,1767903046148,-500.0,0.00017973,2]
[401071375,1767903046157,-500.0,0.00017973,2]
[401071376,1767903046166,-500.0,0.00017973,2]
[401071377,1767903046176,-501.18870733,0.00017973,2]
[401071378,1767903046185,-500.0,0.00017973,2]
[401071379,1767903046195,-500.0,0.00017973,2]
[401071380,1767903046205,-500.0,0.00017973,2]
[401071381,1767903046214,-160.81509317,0.00017973,2]
[401071382,1767903046223,-500.0,0.00017973,2]
[401071383,1767903046233,-500.0,0.00017973,2]
[401071384,1767903046242,-500.0,0.00017973,2]
[401071385,1767903046252,-385.16009683,0.00017973,2]
[401071386,1767903046262,-500.0,0.00017973,2]
[401071387,1767903046272,-150.0,0.00017973,2]
[401071388,1767903046282,-1484.0,0.00017975,2]
[401071389,1767903046292,-150.0,0.00017984,2]
[401071390,1767903046302,-893.22555293,0.0001799,2]
[401071391,1767903046312,-893.22555293,0.0001799,2]
[401071392,1767903046322,-705.01,0.00017997,2]
[401071393,1767903046331,-705.01,0.00017997,2]
[401071394,1767903046341,-705.01,0.00017997,2]
[401071395,1767903046351,-705.01,0.00017997,2]
[401071396,1767903046360,-500.0,0.00017997,2]
[401071397,1767903046370,-500.0,0.00017997,2]
[401071398,1767903046380,-500.0,0.00017997,2]
[401071399,1767903046389,-500.0,0.00017997,2]
[401071400,1767903046399,-568.35,0.00017997,2]
[401071401,1767903046408,-568.35,0.00017997,2]
[401071402,1767903046420,-568.35,0.00017997,2]
[401071403,1767903046431,-568.35,0.00017997,2]
[401071404,1767903046440,-151.0,0.00017997,2]
[401071405,1767903046450,-705.01,0.00017998,2]
[401071406,1767903046459,-29690.0149976,0.00017998,2]
[401071407,1767903046469,-150.0,0.00017999,2]
[401071408,1767903046479,-300.0,0.00017999,2]
[401071409,1767903046488,-1006.1979,0.00017999,2]
[401071410,1767903046500,-666.0,0.00017999,2]
[401071411,1767903046510,-303.86088657,0.00017999,2]
[401071412,1767903046520,-1214.22810272,0.00017999,2]
[401071413,1767903046530,-300.0,0.00017999,2]
[401071414,1767903046539,-666.0,0.00017999,2]
[401071415,1767903046548,-705.01,0.00017999,2]
[401071416,1767903046558,-705.01,0.00017999,2]
[401071417,1767903046567,-705.01,0.00017999,2]
[401071418,1767903046576,-705.01,0.00017999,2]
[401071419,1767903046586,-705.01,0.00017999,2]
[401071420,1767903046596,-705.01,0.00017999,2]
[401071421,1767903046605,-705.01,0.00017999,2]
[401071422,1767903046615,-705.01,0.00017999,2]
[401071423,1767903046624,-705.01,0.00017999,2]
[401071424,1767903046634,-705.24085139,0.00017999,2]
[401071425,1767903046643,-666.0,0.00017999,2]
[401071426,1767903046653,-500.0,0.00017999,2]
[401071427,1767903046663,-500.0,0.00017999,2]
[401071428,1767903046672,-500.0,0.00017999,2]
[401071429,1767903046682,-500.0,0.00017999,2]
[401071430,1767903046691,-500.0,0.00017999,2]
[401071431,1767903046701,-500.0,0.00017999,2]
[401071432,1767903046710,-500.0,0.00017999,2]
[401071433,1767903046720,-500.0,0.00017999,2]
[401071434,1767903046729,-500.0,0.00017999,2]
[401071435,1767903046739,-500.0,0.00017999,2]
[401071436,1767903046749,-500.0,0.00017999,2]
[401071437,1767903046758,-500.0,0.00017999,2]
[401071438,1767903046767,-459.26722753,0.00017999,2]
[401071439,1767903046776,-819.99,0.00017999,2]
[401071440,1767903046786,-819.99,0.00017999,2]
[401071441,1767903046795,-819.99,0.00017999,2]
[401071442,1767903046804,-819.99,0.00017999,2]
[401071443,1767903046813,-819.99,0.00017999,2]
[401071444,1767903046823,-819.99,0.00017999,2]
[401071445,1767903046832,-819.99,0.00017999,2]
[401071446,1767903046841,-819.99,0.00017999,2]
[401071447,1767903046851,-819.99,0.00017999,2]
[401071448,1767903047084,-819.99,0.00017999,2]
[401071449,1767903047094,-819.99,0.00017999,2]
[401071450,1767903047103,-819.99,0.00017999,2]
[401071451,1767903047112,-819.99,0.00017999,2]
[401071452,1767903047122,-819.99,0.00017999,2]
[401071453,1767903047132,-819.99,0.00017999,2]
[401071454,1767903047141,-819.99,0.00017999,2]
[401071455,1767903047150,-820.2277512,0.00017999,2]
[401071456,1767903047160,-500.0,0.00017999,2]
[401071457,1767903047170,-500.0,0.00017999,2]
[401071458,1767903047179,-500.0,0.00017999,2]
[401071459,1767903047193,-577.6208976,0.00017999,2]
[401071460,1767903047202,-564.92009029,0.00017999,2]
[401071461,1767903047212,-300.0,0.00017999,2]
[401071462,1767903047222,-300.0,0.00017999,2]
[401071463,1767903047232,-666.0,0.00017999,2]
[401071464,1767903047242,-300.0,0.00017999,2]
[401071465,1767903047252,-568.35,0.00017999,2]
[401071466,1767903047262,-568.35,0.00017999,2]
[401071467,1767903047271,-568.35,0.00017999,2]
[401071468,1767903047281,-568.35,0.00017999,2]
[401071469,1767903047291,-568.35,0.00017999,2]
[401071470,1767903047301,-568.35,0.00017999,2]
[401071471,1767903047311,-568.35,0.00017999,2]
[401071472,1767903047320,-568.35,0.00017999,2]
[401071473,1767903047330,-568.35,0.00017999,2]
[401071474,1767903047341,-568.35,0.00017999,2]
[401071475,1767903047351,-568.4013734,0.00017999,2]
[401071476,1767903047361,-300.0,0.00017999,2]
[401071477,1767903047371,-666.0,0.00017999,2]
[401071478,1767903047381,-300.0,0.00017999,2]
[401071479,1767903047394,-666.0,0.00017999,2]
[401071480,1767903047405,-300.0,0.00017999,2]
[401071481,1767903047414,-666.0,0.00017999,2]
[401071482,1767903047424,-386.45682453,0.00017999,2]
[401071483,1767903047437,-5970.77362135,0.00017999,2]
[401071484,1767903047447,-1000.0,0.00018,2]
[401071485,1767903047457,-836.47750939,0.00018,2]
[401071486,1767903047467,-3349873.99907469,0.00018,2]
[401071487,1767903047478,-741203.47601904,0.00018,2]
[401071488,1767903047488,-105370.64318368,0.00018,2]
[401071489,1767903047498,-61111.17311907,0.00018,2]
[401071490,1767903049312,-152.0,0.00014363,2]
[401071491,1767903049323,-151.0,0.00014363,2]
[401071492,1767903049332,-150.0,0.00016219,2]
[401071493,1767903049342,-200.0,0.00016274,2]
[401071494,1767903049351,-267.4,0.00016329,2]
[401071495,1767903049429,-232.6,0.00016329,2]
[401071496,1767903049439,-281.3806178,0.00016383,2]
[401071497,1767903049448,-1851.92042421,0.00017256,2]
[401071498,1767903050224,-2950.711,0.00013367,2]
[401071499,1767903050235,-358.8,0.00013367,2]
[401071500,1767903050257,-612.14274517,0.00013367,2]
[401071501,1767903050267,-1658.28792753,0.00017256,2]
[401071502,1767903050430,-550.04304676,0.00017256,2]
[401071503,1767903050454,-2491.7486015,0.00017256,2]
[401071504,1767903050464,-211.30647502,0.000179,2]
[401071505,1767903050475,-4156.38395236,0.00018,2]
[401071529,1767903628839,999.0,0.00012621,3]
[401071531,1767903995328,-186.95791011,0.00011576,2]
[401071548,1767904232186,-186.95791011,0.00011476,2]
[401071549,1767904232196,-195.0,0.00011483,2]
[401071550,1767904232205,-195.0,0.00011491,2]
[401071551,1767904232215,-1464.85991154,0.00011506,2]
[401071552,1767904232227,-3535.15008846,0.00011506,2]
[401071553,1767904232245,-300.0,0.00011574,2]
[401071554,1767904232257,-1200.0,0.00011574,2]
[401071555,1767904232267,-150.0,0.00011574,2]
[401071556,1767904232279,-500.0,0.00011575,2]
[401071557,1767904232289,-500.0,0.00011575,2]
[401071558,1767904232300,-500.0,0.00011575,2]
[401071559,1767904232310,-500.0,0.00011575,2]
[401071560,1767904232321,-500.0,0.00011575,2]
[401071561,1767904232330,-500.0,0.00011575,2]
[401071562,1767904232340,-500.0,0.00011575,2]
[401071563,1767904232350,-500.0,0.00011575,2]
[401071564,1767904232359,-500.0,0.00011575,2]
[401071565,1767904232369,-500.0,0.00011575,2]
[401071567,1767904232379,-500.0,0.00011575,2]
[401071569,1767904232389,-500.0,0.00011575,2]
[401071571,1767904232398,-500.0,0.00011575,2]
[401071573,1767904232408,-500.0,0.00011575,2]
[401071574,1767904232417,-500.0,0.00011575,2]
[401071581,1767904232910,-500.0,0.00011575,2]
[401071582,1767904232939,-241.4149479,0.00011575,2]
[401071583,1767904232949,-500.0,0.00011575,2]
[401071584,1767904232958,-500.0,0.00011575,2]
[401071585,1767904232967,-500.0,0.00011575,2]
[401071586,1767904232977,-500.0,0.00011575,2]
[401071587,1767904232986,-500.0,0.00011575,2]
[401071588,1767904232995,-500.0,0.00011575,2]
[401071589,1767904233005,-500.0,0.00011575,2]
[401071590,1767904233014,-500.0,0.00011575,2]
[401071591,1767904233023,-500.0,0.00011575,2]
[401071592,1767904233033,-500.0,0.00011575,2]
[401071593,1767904233042,-500.0,0.00011575,2]
[401071594,1767904233052,-500.0,0.00011575,2]
[401071595,1767904233061,-500.0,0.00011575,2]
[401071596,1767904233070,-500.0,0.00011575,2]
[401071597,1767904233079,-500.0,0.00011575,2]
[401071598,1767904233088,-500.0,0.00011575,2]
[401071599,1767904233097,-500.0,0.00011575,2]
[401071600,1767904233106,-500.0,0.00011575,2]
[401071601,1767904233115,-500.0,0.00011575,2]
[401071602,1767904233124,-500.0,0.00011575,2]
[401071603,1767904233133,-205.42992098,0.00011575,2]
[401071604,1767904233179,-294.57007902,0.00011575,2]
[401071605,1767904233188,-500.0,0.00011575,2]
[401071606,1767904233197,-500.0,0.00011575,2]
[401071607,1767904233207,-500.0,0.00011575,2]
[401071608,1767904233217,-500.0,0.00011575,2]
[401071609,1767904233230,-500.0,0.00011575,2]
[401071610,1767904233240,-478.28662865,0.00011575,2]
[401071611,1767904233250,-500.0,0.00011575,2]
[401071612,1767904233259,-500.0,0.00011575,2]
[401071613,1767904233269,-500.0,0.00011575,2]
[401071614,1767904233278,-500.0,0.00011575,2]
[401071615,1767904233287,-500.0,0.00011575,2]
[401071616,1767904233297,-500.0,0.00011575,2]
[401071617,1767904233306,-500.0,0.00011575,2]
[401071618,1767904233315,-500.0,0.00011575,2]
[401071619,1767904233325,-155.80516148,0.00011575,2]
[401071620,1767904233336,-344.19483852,0.00011575,2]
[401071621,1767904233346,-500.0,0.00011575,2]
[401071622,1767904233356,-500.0,0.00011575,2]
[401071623,1767904233366,-500.0,0.00011575,2]
[401071624,1767904233376,-500.0,0.00011575,2]
[401071625,1767904233386,-500.0,0.00011575,2]
[401071626,1767904233395,-500.0,0.00011575,2]
[401071627,1767904233404,-500.0,0.00011575,2]
[401071628,1767904233413,-500.0,0.00011575,2]
[401071629,1767904233423,-500.0,0.00011575,2]
[401071630,1767904233432,-500.0,0.00011575,2]
[401071631,1767904233442,-500.0,0.00011575,2]
[401071632,1767904233451,-500.0,0.00011575,2]
[401071633,1767904233461,-500.0,0.00011575,2]
[401071634,1767904233470,-500.0,0.00011575,2]
[401071635,1767904233479,-500.0,0.00011575,2]
[401071636,1767904233490,-430.73473392,0.00011575,2]
[401071637,1767904233499,-500.0,0.00011575,2]
[401071638,1767904233509,-161.55192976,0.00011575,2]
[401071639,1767904233519,-500.0,0.00011575,2]
[401071640,1767904233528,-539.26444128,0.00011575,2]
[401071641,1767904233538,-500.0,0.00011575,2]
[401071642,1767904233548,-500.0,0.00011575,2]
[401071643,1767904233557,-200.81637103,0.00011575,2]
[401071644,1767904233566,-226.59329501,0.00011577,2]
[401071645,1767904233575,-500.0,0.00011577,2]
[401071646,1767904233585,-219.92810965,0.00011577,2]
[401071647,1767904233594,-216.19310727,0.00011577,2]
[401071648,1767904233607,-250.0,0.00011577,2]
[401071649,1767904233617,-250.0,0.00011598,2]
[401071650,1767904233627,-151.0,0.0001167,2]
[401071651,1767904233636,-151.0,0.0001167,2]
[401071652,1767904233645,-151.0,0.0001167,2]
[401071653,1767904233654,-151.0,0.0001167,2]
[401071654,1767904233665,-290.63838597,0.0001167,2]
[401071655,1767904233678,-1299.526,0.00011672,2]
[401071656,1767904233689,-1850.77475813,0.00011672,2]
[401071657,1767904233834,-394.45008645,0.00011672,2]
[401071658,1767904233845,-286.96095259,0.00011672,2]
[401071727,1767904239205,-144.14656841,0.00011672,2]
[401071729,1767904239217,-5177.49975,0.00011672,2]
[401071739,1767904239292,-2146.15788442,0.00011672,2]
[401071741,1767904239302,-151.0,0.00011674,2]
[401071743,1767904239311,-216.53189455,0.00011678,2]
[401071745,1767904239320,-150.0,0.00011692,2]
[401071747,1767904239330,-160.53,0.0001185,2]
[401071749,1767904239339,-914.48,0.00011881,2]
[401071751,1767904239348,-500.0,0.0001193,2]
[401071753,1767904239357,-3087.833,0.00012028,2]
[401071755,1767904239366,-1000.0,0.00012028,2]
[401071757,1767904239375,-409.0,0.00012543,2]
[401071759,1767904239384,-195.0,0.00012624,2]
[401071761,1767904239398,-195.0,0.00012624,2]
[401071763,1767904239408,-255.0,0.00012639,2]
[401071764,1767904239417,-420.0,0.00012711,2]
[401071766,1767904239427,-216.5318945,0.00012715,2]
[401071768,1767904239436,-1680.0,0.00012731,2]
[401071770,1767904239446,-250.0,0.00012735,2]
[401071772,1767904239455,-195.0,0.00012735,2]
[401071774,1767904239464,-200.0,0.00012849,2]
[401071775,1767904239473,-1500.0,0.00013227,2]
[401071776,1767904239482,-914.48,0.00013366,2]
[401071777,1767904239492,-3240.0,0.00013425,2]
[401071778,1767904239501,-500.0,0.00013698,2]
[401071779,1767904239511,-500.0,0.00013698,2]
[401071780,1767904239520,-500.0,0.00013698,2]
[401071781,1767904239529,-500.0,0.00013698,2]
[401071782,1767904239538,-500.0,0.00013698,2]
[401071783,1767904239548,-500.0,0.00013698,2]
[401071784,1767904239557,-500.0,0.00013698,2]
[401071785,1767904239566,-500.0,0.00013698,2]
[401071786,1767904239576,-500.0,0.00013698,2]
[401071787,1767904239585,-500.0,0.00013698,2]
[401071788,1767904239594,-446.86331983,0.00013698,2]
[401071789,1767904239603,-200.0,0.00013698,2]
[401071790,1767904239612,-568.35,0.00013698,2]
[401071791,1767904239622,-568.35,0.00013698,2]
[401071792,1767904239632,-568.35,0.00013698,2]
[401071793,1767904239641,-568.35,0.00013698,2]
[401071794,1767904239650,-502.28702111,0.00013698,2]
[401071796,1767904239659,-819.99,0.00013698,2]
[401071797,1767904239669,-819.99,0.00013698,2]
[401071799,1767904239678,-819.99,0.00013698,2]
[401071801,1767904239688,-819.99,0.00013698,2]
[401071803,1767904239697,-500.0,0.00013698,2]
[401071805,1767904239707,-500.0,0.00013698,2]
[401071807,1767904239716,-500.0,0.00013698,2]
[401071809,1767904239725,-500.0,0.00013698,2]
[401071811,1767904239734,-500.0,0.00013698,2]
[401071813,1767904239744,-500.0,0.00013698,2]
[401071815,1767904239753,-320.87822696,0.00013698,2]
[401071817,1767904239762,-500.0,0.00013698,2]
[401071819,1767904239776,-500.0,0.00013698,2]